fUSD/lending_fUSD_20240129
["ID","MTS","AMOUNT","RATE_DAILY","PERIOD"]
[312948991,1706502638372,-843.85681644,0.000227,2]
[312948992,1706502638383,-346.49127393,0.000227,2]
[312948993,1706502638531,-315.33493403,0.000227,2]
[312948994,1706502638545,-88234.82927453,0.000227,2]
[312948995,1706502638554,-100000.0,0.000227,2]
[312948996,1706502638563,-200.0,0.00022717,2]
[312948997,1706502638572,-800.0,0.00022717,2]
[312948998,1706502638582,-1037.0,0.000228,2]
[312949000,1706502638591,-976.88091505,0.000228,2]
[312949002,1706502638600,-197.39376234,0.00022899,2]
[312949004,1706502638609,-82295.29976829,0.000229,2]
[312949006,1706502638618,-3798.42367932,0.000229,2]
[312949008,1706502638627,-500.0,0.000229,2]
[312949009,1706502638636,-2000.0,0.000229,2]
[312949010,1706502638645,-200.0,0.000229,2]
[312949011,1706502638654,-178.5219508,0.000229,2]
[312949012,1706502638663,-255.42907189,0.000229,2]
[312949013,1706502638672,-159.07261465,0.000229,2]
[312949014,1706502638681,-2734.16142212,0.000229,2]
[312949015,1706502638690,-5000.0,0.000229,2]
[312949016,1706502638699,-1292.16351318,0.000229,2]
[312949017,1706502638708,-316.11052341,0.000229,2]
[312949018,1706502638719,-403.3,0.00022959,2]
[312949019,1706502638728,-216.69112396,0.00022975,2]
[312949020,1706502638737,-203.37710716,0.00022997,2]
[312949021,1706502638746,-319.31161287,0.00022997,2]
[312949022,1706502638755,-250.50744533,0.00022997,2]
[312949023,1706502638764,-219.07628679,0.00022998,2]
[312949024,1706502638773,-700.84454695,0.00022998,2]
[312949026,1706502638783,-983.5077784,0.00022998,2]
[312949028,1706502638793,-200.38283576,0.00022998,2]
[312949029,1706502638803,-263.57238375,0.00022998,2]
[312949031,1706502638813,-212.70850598,0.00022998,2]
[312949032,1706502638822,-685.42472441,0.00022998,2]
[312949033,1706502638831,-3700.81877215,0.00022999,2]
[312949034,1706502638841,-2466.29972506,0.00022999,2]
[312949035,1706502638850,-698.92288571,0.00022999,2]
[312949036,1706502638859,-234.66196094,0.00022999,2]
[312949037,1706502638868,-1264.50050466,0.00022999,2]
[312949038,1706502638878,-1524185.20163057,0.00023,2]
[312949039,1706502638887,-578014.59050385,0.00023,2]
[312949049,1706502641350,-19399.21566333,0.00023,2]
[312949050,1706502641458,-396.6773521,0.00023,2]
[312949051,1706502641515,-499.99,0.00023,2]
[312949052,1706502641625,-920.77149007,0.00023,2]
[312949064,1706502643227,-500.0,0.00023,2]
[312949065,1706502643396,-3569.12017158,0.00023,2]
[312949066,1706502643505,-4222.99750602,0.00023,2]
[312949080,1706502646329,-1637.61951442,0.000229,2]
[312949081,1706502646338,-266523.93556125,0.00023,2]
[312949082,1706502646350,-6712.09150314,0.00023,2]
[312949083,1706502646535,-12789.63225071,0.00023,2]
[312949084,1706502646547,-9303.18387966,0.00023,2]
[312949085,1706502687884,538.73065424,0.00022999,3]
[312949086,1706502687958,480.22815126,0.00022999,3]
[312949087,1706502952337,154.72,0.00020408,2]
[312949088,1706503293871,236.63882,0.00021,2]
[312949093,1706503831514,-207.45257449,0.00021979,2]
[312949094,1706503831523,-1092.54742551,0.00022046,2]
[312949095,1706503831627,-430.66728007,0.00022046,2]
[312949096,1706503831636,-630.63818155,0.00022079,2]
[312949097,1706503831646,-1214.29453838,0.00022279,2]
[312949098,1706503831657,-280.24516117,0.00022279,2]
[312949099,1706503831670,-28.67500603,0.00022279,2]
[312949100,1706503831680,-164.65487053,0.00022351,2]
[312949101,1706503831689,-276.18,0.00022378,2]
[312949102,1706503831699,-240.27000477,0.00022414,2]
[312949131,1706503837469,-759.72999523,0.00022414,2]
[312949132,1706503837479,-500.0,0.000226,2]
[312949133,1706503837488,-165.04,0.00022694,2]
[312949134,1706503837499,-1523.21470558,0.00022734,2]
[312949135,1706503837508,-1220.2851,0.000228,2]
[312949136,1706503837518,-200.0,0.00022816,2]
[312949137,1706503837527,-800.0,0.00022816,2]
[312949138,1706503837537,-150.0,0.00022896,2]
[312949139,1706503837546,-936.70268201,0.00022897,2]
[312949140,1706503837555,-29184.5561,0.00022898,2]
[312949141,1706503837565,-100000.0,0.000229,2]
[312949142,1706503837574,-2807.57865478,0.000229,2]
[312949143,1706503837584,-129656.51217511,0.000229,2]
[312949144,1706503837593,-1000.0,0.000229,2]
[312949145,1706503837603,-159.07261465,0.000229,2]
[312949146,1706503837613,-5000.0,0.000229,2]
[312949147,1706503837622,-1822.77428142,0.000229,2]
[312949148,1706503837631,-1091.74634296,0.000229,2]
[312949149,1706503837641,-210.74034894,0.000229,2]
[312949150,1706503837650,-239.96286098,0.000229,2]
[312949151,1706503837660,-49000.72419049,0.00022996,2]
[312949152,1706503837669,-1147.01385562,0.00022997,2]
[312949153,1706503837679,-849.91571233,0.00022998,2]
[312949154,1706503837688,-526.90594285,0.00022999,2]
[312949155,1706503837697,-234.66196094,0.00022999,2]
[312949156,1706503837706,-1773012.65461053,0.00023,2]
[312949157,1706503837740,-9016.65950787,0.00023,2]
[312949159,1706503837760,-396.88586988,0.00023,2]
[312949169,1706503839928,-17134.71351603,0.00023,2]
[312949170,1706503839940,-356.99633322,0.00023,2]
[312949171,1706503839984,-260.72695755,0.00023,2]
[312949172,1706503840234,-1301.10073228,0.00023,2]
[312949174,1706503842484,-234.66196094,0.00022999,2]
[312949175,1706503842494,-2760.40237108,0.00023,2]
[312949176,1706503842506,-2845.74914455,0.00023,2]
[312949177,1706503842540,-429.3413207,0.00023,2]
[312949178,1706503842552,-1560.0,0.00023,2]
[312949179,1706503842597,-702.24588902,0.00023,2]
[312949180,1706503842609,-11127.82009553,0.00023,2]
[312949181,1706503842620,-3130.14142335,0.00023,2]
[312949182,1706503842659,-937.480368,0.00023,2]
[312949183,1706503842715,-610.76019171,0.00023,2]
[312949196,1706503845518,-633.709995,0.000228,2]
[312949198,1706503845530,-862.563003,0.000228,2]
[312949200,1706503845542,-1158.10832356,0.000228,2]
[312949202,1706503845739,-2152.46439114,0.000228,2]
[312949203,1706503845751,-1500.0,0.000228,2]
[312949204,1706503845798,-649.30854498,0.000228,2]
[312949208,1706503908132,287.60340932,0.00022998,3]
[312949209,1706503908207,239.07928436,0.00022999,3]
[312949210,1706503980794,150.1,0.00022997,3]
[312949211,1706503980881,150.1,0.00022998,3]
[312949212,1706504057150,172.41667319,0.00022998,3]
[312949213,1706504387559,154.63,0.00021317,2]
[312949216,1706504914678,10000.0,0.000225,3]
[312949222,1706505034041,-549.35079271,0.000225,2]
[312949227,1706505034097,-315.2812933,0.000225,2]
[312949228,1706505034158,-861.30312776,0.000225,2]
[312949229,1706505034230,-1906.08177036,0.000225,2]
[312949230,1706505034266,-6367.98301587,0.000225,2]
[312949231,1706505034278,-150.0,0.00022509,2]
[312949232,1706505034289,-234.4466,0.000227,2]
[312949233,1706505034298,-513.5765877,0.00022725,2]
[312949234,1706505034310,-1009.63811789,0.00022725,2]
[312949235,1706505034320,-2390.36188211,0.0002279,2]
[312949236,1706505034332,-1542.6151615,0.0002279,2]
[312949237,1706505034346,-16017.61858627,0.0002279,2]
[312949238,1706505034357,-2297.3999,0.000228,2]
[312949239,1706505034368,-1000.0,0.000228,2]
[312949240,1706505034379,-500.0,0.000228,2]
[312949241,1706505034389,-217762.5129,0.000228,2]
[312949242,1706505034402,-200.0,0.00022816,2]
[312949243,1706505034413,-62227.61113636,0.000229,2]
[312949244,1706505034453,-616.61648566,0.000229,2]
[312949245,1706505034479,-318.3432,0.000229,2]
[312949247,1706505037587,-66493.94135309,0.000229,2]
[312949248,1706505037597,-253.7319,0.000229,2]
[312949249,1706505037608,-71421.0849,0.000229,2]
[312949250,1706505037618,-2597.87564696,0.000229,2]
[312949251,1706505037628,-1540.6742,0.000229,2]
[312949252,1706505037639,-152.88280836,0.000229,2]
[312949253,1706505037650,-1215.18285428,0.000229,2]
[312949254,1706505037660,-159.97524066,0.000229,2]
[312949255,1706505037671,-727.8308953,0.000229,2]
[312949256,1706505037681,-1000.0,0.0002296,2]
[312949257,1706505037691,-178.77206169,0.0002299,2]
[312949258,1706505037702,-541.34637633,0.00022997,2]
[312949259,1706505037712,-882.77776989,0.00022998,2]
[312949260,1706505037722,-22052.31856191,0.00022998,2]
[312949261,1706505037733,-2418.56954635,0.00022998,2]
[312949262,1706505037743,-155.0,0.00022998,2]
[312949263,1706505037753,-572.95050947,0.00022998,2]
[312949264,1706505037765,-163.17387645,0.00022998,2]
[312949265,1706505037775,-441.23814888,0.00022998,2]
[312949266,1706505037785,-509.31960387,0.00022998,2]
[312949267,1706505037795,-714.55164145,0.00022998,2]
[312949268,1706505037805,-800.15571506,0.00022998,2]
[312949269,1706505037816,-524.52603564,0.00022999,2]
[312949270,1706505037826,-2115.29572175,0.00022999,2]
[312949271,1706505037836,-3713.1403087,0.00022999,2]
[312949272,1706505037847,-167.31917376,0.00022999,2]
[312949273,1706505037857,-499.99,0.00022999,2]
[312949274,1706505037868,-663.10919193,0.00022999,2]
[312949275,1706505037878,-506.11425557,0.00022999,2]
[312949276,1706505037889,-300724.24031844,0.00023,2]
[312949277,1706505037899,-198791.24882033,0.00023,2]
[312949278,1706505037911,-896425.46476239,0.00023,2]
[312949279,1706505037921,-193888.85241202,0.00023,2]
[312949280,1706505037972,-15570.04461585,0.00023,2]
[312949281,1706505037989,-5628.37594026,0.00023,2]
[312949282,1706505038007,-4447.81020263,0.00023,2]
[312949402,1706505040072,-819.61484675,0.000228,2]
[312949403,1706505040082,-448.19357859,0.000229,2]
[312949405,1706505040179,-399.63865327,0.000229,2]
[312949406,1706505040191,-478.22499076,0.000229,2]
[312949407,1706505040234,-3673.94277738,0.000229,2]
[312949408,1706505040242,-517.94492262,0.00023,2]
[312949409,1706505040289,-998.486475,0.00023,2]
[312949410,1706505040300,-637.26935831,0.00023,2]
[312949420,1706505042613,-2343.59286115,0.00023,2]
[312949422,1706505042625,-510.5000003,0.00023,2]
[312949423,1706505042637,-1300.1326,0.00023,2]
[312949428,1706505042721,-2025.22,0.00023,2]
[312949429,1706505042779,-2440.75131578,0.00023,2]
[312949430,1706505042831,-1521.56675804,0.00023,2]
[312949431,1706505042843,-563.67527435,0.00023,2]
[312949432,1706505042887,-1546.45892073,0.00023,2]
[312949433,1706505042943,-8054.88811871,0.00023,2]
[312949438,1706505046120,-2859.71598182,0.00023,2]
[312949439,1706505046139,-505.85696838,0.00023,2]
[312949440,1706505046150,-299.404,0.00023,2]
[312949441,1706505057549,224.17078425,0.00022769,4]
[312949442,1706505353603,190.06,0.00020946,2]
[312949443,1706505406904,163.39541532,0.00027,7]
[312949457,1706506231862,-1015.95,0.00021963,2]
[312949458,1706506231872,-91.24364572,0.00021963,2]
[312949459,1706506232121,-158.75635428,0.00021963,2]
[312949460,1706506232131,-172.87245994,0.0002197,2]
[312949461,1706506232142,-627.12754006,0.0002197,2]
[312949462,1706506232152,-1434.11067594,0.00022005,2]
[312949467,1706506232183,-358.07932406,0.00022005,2]
[312949469,1706506232192,-44.34235594,0.00022053,2]
[312949471,1706506232208,-205.65764406,0.00022053,2]
[312949473,1706506232218,-1694.34235594,0.00022079,2]
[312949500,1706506237834,-137.52234929,0.00022079,2]
[312949502,1706506237843,-200.0,0.00022113,2]
[312949503,1706506237853,-237.46501886,0.000224,2]
[312949504,1706506237866,-18.58446269,0.000224,2]
[312949505,1706506237875,-230.15,0.00022492,2]
[312949506,1706506237884,-3498.19846508,0.00022499,2]
[312949507,1706506237897,-1148.19012103,0.00022499,2]
[312949508,1706506237907,-5105.46364888,0.000225,2]
[312949509,1706506237922,-258.61400001,0.000225,2]
[312949510,1706506237949,-648.5229323,0.000225,2]
[312949511,1706506237961,-784.20550947,0.000225,2]
[312949512,1706506238006,-1088.97390934,0.000225,2]
[312949513,1706506238015,-2107.4328,0.000226,2]
[312949514,1706506238025,-1414.2053,0.000226,2]
[312949515,1706506238034,-1047.5073,0.000226,2]
[312949516,1706506238044,-407.5349,0.000226,2]
[312949517,1706506238053,-15151.68277573,0.00022698,2]
[312949518,1706506238063,-3455.69,0.00022698,2]
[312949519,1706506238073,-499.99,0.00022698,2]
[312949520,1706506238083,-2102.76346908,0.00022699,2]
[312949521,1706506238092,-725.96,0.00022699,2]
[312949522,1706506238102,-17623.09303762,0.000227,2]
[312949523,1706506238113,-60489.38488394,0.000227,2]
[312949524,1706506238124,-62347.47892638,0.000227,2]
[312949525,1706506238139,-627.74580422,0.000227,2]
[312949526,1706506238155,-84658.98664784,0.000227,2]
[312949527,1706506238164,-200.0,0.0002279,2]
[312949528,1706506238174,-790.07665566,0.000228,2]
[312949529,1706506238183,-500.0,0.00022815,2]
[312949530,1706506238192,-200.0,0.00022815,2]
[312949531,1706506238201,-500.0,0.00022815,2]
[312949532,1706506238210,-500.0,0.00022816,2]
[312949533,1706506238219,-500.0,0.00022816,2]
[312949534,1706506238228,-500.0,0.00022816,2]
[312949535,1706506238237,-500.0,0.00022816,2]
[312949536,1706506238247,-500.0,0.00022816,2]
[312949537,1706506238256,-500.0,0.00022816,2]
[312949538,1706506238265,-500.0,0.00022816,2]
[312949539,1706506238274,-200.0,0.00022816,2]
[312949540,1706506238284,-200.0,0.00022816,2]
[312949541,1706506238293,-486.6682,0.00022898,2]
[312949542,1706506238302,-466.0694,0.00022899,2]
[312949543,1706506238311,-100000.0,0.000229,2]
[312949544,1706506238321,-2403.6260666,0.000229,2]
[312949545,1706506238330,-559.9375225,0.000229,2]
[312949546,1706506238339,-5224.49310087,0.00022998,2]
[312949547,1706506238348,-2515.18009127,0.00022998,2]
[312949548,1706506238357,-634.99430035,0.00022998,2]
[312949549,1706506238366,-251.70277463,0.00022999,2]
[312949550,1706506238376,-155.0,0.00022999,2]
[312949551,1706506238386,-16387.80354433,0.00022999,2]
[312949552,1706506238395,-15545.1588717,0.00022999,2]
[312949553,1706506238404,-1354655.10913743,0.00023,2]
[312949554,1706506238417,-4978.00056741,0.00023,2]
[312949560,1706506240367,-22105.13405453,0.00023,2]
[312949561,1706506240426,-3143.67720964,0.00023,2]
[312949562,1706506240438,-9972.24377589,0.00023,2]
[312949563,1706506240449,-1642.9,0.00023,2]
[312949564,1706506240460,-4991.75654976,0.00023,2]
[312949565,1706506240472,-322.25706152,0.00023,2]
[312949566,1706506240491,-452.25615153,0.00023,2]
[312949567,1706506240503,-359.45574608,0.00023,2]
[312949568,1706506240514,-1078.27669156,0.00023,2]
[312949569,1706506240525,-1604.30241543,0.00023,2]
[312949570,1706506240536,-251.58,0.00023,2]
[312949580,1706506242800,-10439.76527213,0.00023,2]
[312949581,1706506242813,-53879.01035237,0.00023,2]
[312949582,1706506242862,-35065.44658999,0.00023,2]
[312949583,1706506242925,-16541.04783818,0.00023,2]
[312949584,1706506242936,-878.49394085,0.00023,2]
[312949585,1706506242983,-701.33067573,0.00023,2]
[312949586,1706506242995,-72561.87014817,0.00023,2]
[312949587,1706506243044,-976.15820784,0.00023,2]
[312949588,1706506243055,-2563.57660279,0.00023,2]
[312949589,1706506243067,-359.73856219,0.00023,2]
[312949590,1706506243098,-4785.00415533,0.00023,2]
[312949591,1706506243110,-672.27438761,0.00023,2]
[312949592,1706506246108,-626.86484445,0.00023,2]
[312949593,1706506246164,-328.8000002,0.00023,2]
[312949602,1706506260629,341.68673863,0.00022999,10]
[312949603,1706506268862,400.0,0.000227,8]
[312949604,1706506270956,800.0,0.000228,8]
[312949605,1706506273332,1300.0,0.000229,8]
[312949606,1706506732610,205.82,0.00020428,2]
[312949607,1706507195751,205.82,0.00019709,2]
[312949608,1706507230161,300.0,0.000227,8]
[312949609,1706507232251,600.0,0.000228,8]
[312949610,1706507234340,900.0,0.000229,8]
[312949611,1706507236463,1200.0,0.000259,9]
[312949612,1706507388023,250.0,0.00021544,2]
[312949621,1706507432002,-1521.04990684,0.00021655,2]
[312949622,1706507432056,-440.50048215,0.00021655,2]
[312949623,1706507432068,-189.13021117,0.00021655,2]
[312949624,1706507432077,-2502.93956415,0.00021656,2]
[312949625,1706507432089,-5.71835476,0.00021656,2]
[312949626,1706507432099,-360.0,0.00021658,2]
[312949627,1706507432108,-160.98573131,0.00021659,2]
[312949628,1706507432118,-1562.52,0.0002172,2]
[312949629,1706507432127,-534.64,0.00021759,2]
[312949630,1706507432136,-12.57064228,0.00021849,2]
[312949631,1706507432152,-264.55,0.00021849,2]
[312949632,1706507432168,-1039.67935772,0.00021849,2]
[312949633,1706507432177,-2000.0,0.00021922,2]
[312949634,1706507432187,-10022.12,0.00021971,2]
[312949635,1706507432196,-481.8,0.00021971,2]
[312949636,1706507432205,-688.53,0.00021971,2]
[312949637,1706507432214,-8468.87064228,0.00021971,2]
[312949645,1706507437983,-1040.83491927,0.00021971,2]
[312949647,1706507437995,-490.28443845,0.00021971,2]
[312949650,1706507438218,-250.0,0.00021995,2]
[312949651,1706507438228,-417.69,0.00021999,2]
[312949652,1706507438238,-928.44921497,0.00022027,2]
[312949653,1706507438251,-207.78078503,0.00022027,2]
[312949654,1706507438260,-150.08,0.00022027,2]
[312949655,1706507438269,-254.78,0.00022041,2]
[312949656,1706507438279,-200.0,0.00022094,2]
[312949657,1706507438289,-148.76576041,0.00022221,2]
[312949658,1706507438311,-420.69983305,0.00022221,2]
[312949659,1706507438326,-70.53440654,0.00022221,2]
[312949660,1706507438335,-714.45,0.00022241,2]
[312949661,1706507438344,-548.17598439,0.00022308,2]
[312949662,1706507438354,-150.0,0.00022509,2]
[312949663,1706507438363,-167.94,0.000227,2]
[312949664,1706507438373,-2023.71,0.000227,2]
[312949665,1706507438383,-125.18960907,0.00022718,2]
[312949666,1706507438407,-5542.73039093,0.00022718,2]
[312949668,1706507438417,-4774.3556,0.000228,2]
[312949670,1706507438426,-500.0,0.00022815,2]
[312949671,1706507438435,-500.0,0.00022816,2]
[312949673,1706507438444,-500.0,0.000229,2]
[312949675,1706507438452,-89133.0422,0.000229,2]
[312949677,1706507438461,-1000.0,0.000229,2]
[312949679,1706507438470,-691.31707372,0.00022908,2]
[312949681,1706507438479,-1887.10716181,0.00022924,2]
[312949685,1706507438502,-316.2167325,0.00022924,2]
[312949687,1706507438511,-207.51598886,0.00022998,2]
[312949692,1706507440518,-309.04679903,0.00022998,2]
[312949693,1706507442091,-763.2575711,0.00022998,2]
[312949694,1706507442104,-1718.76344717,0.00022998,2]
[312949695,1706507442113,-1649.14826714,0.00022998,2]
[312949696,1706507442125,-668.16681472,0.00022998,2]
[312949697,1706507442145,-4905.77646188,0.00022998,2]
[312949698,1706507442156,-298.37885239,0.00022998,2]
[312949699,1706507442199,-856.53874824,0.00022998,2]
[312949700,1706507442254,-327.30782837,0.00022998,2]
[312949701,1706507442266,-2998.58380616,0.00022998,2]
[312949702,1706507442278,-626.77307996,0.00022998,2]
[312949703,1706507442287,-250.76825842,0.00022999,2]
[312949704,1706507442298,-1804.43949485,0.00023,2]
[312949705,1706507442312,-286.83677164,0.00023,2]
[312949706,1706507442323,-1466.08782232,0.00023,2]
[312949707,1706507442339,-360.21,0.00023,2]
[312949708,1706507442350,-355.12996767,0.00023,2]
[312949715,1706507442954,-2014.53425837,0.00023,2]
[312949719,1706507442965,-469.50000035,0.00023,2]
[312949721,1706507442976,-1313.70377315,0.00023,2]
[312949725,1706507443060,-1190.77521576,0.00023,2]
[312949726,1706507443114,-441.74,0.00023,2]
[312949727,1706507443222,-1161.22070858,0.00023,2]
[312949728,1706507443233,-789.31404361,0.00023,2]
[312949729,1706507443244,-4347.98,0.00023,2]
[312949730,1706507443276,-330.23400921,0.00023,2]
[312949731,1706507443332,-4500.0,0.00023,2]
[312949733,1706507446032,-4613.65668647,0.00023,2]
[312949734,1706507446044,-566.04111157,0.00023,2]
[312949735,1706507446088,-2061.14271177,0.00023,2]
[312949736,1706507446099,-1249.35297561,0.00023,2]
[312949737,1706507446147,-1102.74167354,0.00023,2]
[312949738,1706507446199,-3700.52867238,0.00023,2]
[312949739,1706507446312,-3466.69759647,0.00023,2]
[312949740,1706507446323,-1089.06822807,0.00023,2]
[312949741,1706507446421,-18738.24877323,0.00023,2]
[312949744,1706507446433,-4000.32648503,0.00023,2]
[312949752,1706507622011,211.01,0.00021234,2]
[312949753,1706507957001,161.73,0.00022988,10]
[312949754,1706508392593,153.99,0.00021941,10]
[312949755,1706508604242,205.0,0.0002125,2]
[312949766,1706508632315,-581.49,0.00021654,2]
[312949767,1706508632324,-526.2789764,0.00021694,2]
[312949768,1706508632334,-500.0,0.00021695,2]
[312949769,1706508632347,-273.29,0.00021696,2]
[312949770,1706508632357,-2508.65791891,0.00021902,2]
[312949771,1706508632366,-2000.0,0.00021908,2]
[312949772,1706508632377,-254.78,0.00021938,2]
[312949773,1706508632386,-1000.0,0.00021941,2]
[312949774,1706508632395,-750.0,0.00021974,2]
[312949775,1706508632405,-150.89,0.00021998,2]
[312949776,1706508632415,-150.0,0.00022056,2]
[312949777,1706508632424,-1824.03961501,0.00022057,2]
[312949778,1706508632437,-862.45465978,0.00022057,2]
[312949779,1706508632490,-671.04925394,0.00022057,2]
[312949780,1706508632503,-1012.23348766,0.00022057,2]
[312949781,1706508632514,-1528.13298361,0.00022057,2]
[312949782,1706508632525,-150.89,0.00022189,2]
[312949783,1706508632534,-499.99,0.00022266,2]
[312949784,1706508632544,-1038.52,0.00022288,2]
[312949787,1706508632554,-54.82766027,0.00022314,2]
[312949795,1706508632610,-107.55744948,0.00022314,2]
[312949797,1706508632620,-202.44255052,0.00022314,2]
[312949798,1706508632634,-417.21744948,0.00022314,2]
[312949800,1706508632645,-150.89,0.00022381,2]
[312949801,1706508632655,-75.25645817,0.00022414,2]
[312949803,1706508632667,-366.91487999,0.00022414,2]
[312949805,1706508632688,-586.89099606,0.00022414,2]
[312949806,1706508636273,43943.44435321,0.00023,7]
[312949807,1706508638380,-317.95766578,0.00022414,2]
[312949808,1706508638390,-836.6073528,0.00022493,2]
[312949809,1706508638399,-7000.0,0.000225,2]
[312949810,1706508638409,-150.89,0.00022572,2]
[312949811,1706508638418,-167.94,0.00022572,2]
[312949812,1706508638428,-150.89,0.00022763,2]
[312949813,1706508638437,-25443.88824699,0.00022899,2]
[312949814,1706508638449,-40617.02085301,0.00022899,2]
[312949815,1706508638459,-268.4468,0.000229,2]
[312949816,1706508638468,-56415.90801945,0.000229,2]
[312949817,1706508638543,-404.64145571,0.000229,2]
[312949832,1706508641688,-13851.06916875,0.000229,2]
[312949840,1706508643877,-500.0,0.00022899,2]
[312949841,1706508643886,-102115.41495609,0.000229,2]
[312949842,1706508643896,-500.0,0.000229,2]
[312949843,1706508643905,-2019.71356983,0.000229,2]
[312949844,1706508643914,-604.90243954,0.000229,2]
[312949845,1706508643923,-150.89,0.00022954,2]
[312949846,1706508643932,-705.52905557,0.00022998,2]
[312949847,1706508643941,-358.89301461,0.00022998,2]
[312949848,1706508643951,-2343.77309276,0.00022998,2]
[312949849,1706508643960,-8006.06351702,0.00023,2]
[312949850,1706508643971,-2151.93345604,0.00023,2]
[312949852,1706508646246,-408.1979072,0.00023,2]
[312949853,1706508646302,-639.71923804,0.00023,2]
[312949854,1706508646414,-357.50541996,0.00023,2]
[312949855,1706508646426,-2551.39094543,0.00023,2]
[312949857,1706508688864,239.86660155,0.00022998,3]
[312949858,1706508688945,570.77564383,0.00023,3]
[312949859,1706508761542,154.85158598,0.00022998,3]
[312949860,1706508761619,198.69525099,0.00023,3]
[312949861,1706508837278,211.18965556,0.00022998,3]
[312949862,1706509002340,198.44,0.00020668,2]
[312949863,1706509026688,-500.0,0.00021999,2]
[312949864,1706509026713,-176.69,0.00022,2]
[312949865,1706509026734,-782.20915144,0.00022,2]
[312949866,1706509026755,-128.10084856,0.00022,2]
[312949867,1706509292884,153.99,0.0002223,10]
[312949868,1706509424208,-500.0,0.00022116,2]
[312949869,1706509424407,-2000.0,0.00022117,2]
[312949870,1706509424434,-221.84,0.00022141,2]
[312949871,1706509424455,-1852.42,0.000222,2]
[312949872,1706509424474,-2239.89,0.0002223,2]
[312949873,1706509424496,-1000.0,0.0002228,2]
[312949874,1706509424517,-150.0,0.0002232,2]
[312949875,1706509424538,-20351.67,0.00022321,2]
[312949876,1706509424561,-635.11,0.00022346,2]
[312949877,1706509427902,3144.38808139,0.00021658,2]
[312949878,1706509439836,3194.72146129,0.00021886,2]
[312949879,1706509470798,2705.0,0.00022409,2]
[312949880,1706509592155,176.69,0.00022,2]
[312949881,1706509669688,529.25,0.00022486,2]
[312949882,1706509706175,171.79,0.00022492,2]
[312949883,1706509714374,152.7,0.00022569,10]
[312949890,1706509831392,-399.42347755,0.00022547,2]
[312949891,1706509831404,-100.57652245,0.00022547,2]
[312949892,1706509831412,-352.78,0.00022548,2]
[312949893,1706509831422,-8.22,0.00022566,2]
[312949894,1706509831434,-191.78,0.00022566,2]
[312949895,1706509831443,-200.0,0.00022569,2]
[312949896,1706509831453,-155.45131159,0.0002257,2]
[312949897,1706509831462,-99.47889047,0.00022583,2]
[312949898,1706509831473,-52.89110953,0.00022583,2]
[312949899,1706509831482,-150.0,0.00022699,2]
[312949900,1706509831491,-164.10341393,0.000227,2]
[312949901,1706509831500,-1346.34856064,0.000227,2]
[312949902,1706509831516,-1967.9305119,0.000227,2]
[312949903,1706509831527,-1464.37708173,0.000227,2]
[312949904,1706509831543,-622.59271794,0.000227,2]
[312949905,1706509831555,-266.569,0.000227,2]
[312949906,1706509831574,-1368.01948662,0.000227,2]
[312949907,1706509831585,-300.0,0.000227,2]
[312949908,1706509831597,-1033.7,0.000227,2]
[312949944,1706509837464,-609.47680672,0.000227,2]
[312949945,1706509837476,-7975.84813445,0.000227,2]
[312949946,1706509837673,-301.9226,0.000228,2]
[312949947,1706509837684,-77137.1256,0.000228,2]
[312949948,1706509837693,-1399.0219,0.000228,2]
[312949949,1706509837703,-152.37,0.00022877,2]
[312949950,1706509837713,-515.28,0.00022877,2]
[312949951,1706509837723,-1851.40410565,0.000229,2]
[312949952,1706509837732,-499.99,0.000229,2]
[312949953,1706509837742,-9155.12666139,0.000229,2]
[312949954,1706509837751,-9155.12666138,0.000229,2]